[Event "December 19 Early 2023"]
[Site "https://www.chess.com"]
[Date "2023.12.19"]
[Round "9"]
[White "Demchenko, Anton"]
[Black "Klimkowski, Jan"]
[Result "0-1"]
[Board "18"]
[TimeControl "180+1"]
[WhiteFideId "4160258"]
[BlackFideId "21856222"]
[WhiteElo "2545"]
[BlackElo "2324"]
[WhiteTeam "SLO"]
[BlackTeam "POL"]
[WhiteClock "0:00:03"]
[BlackClock "0:00:12"]

1. e4 {[%clk 0:03:00]}  c5 {[%clk 0:03:00]} 2. Nf3 {[%clk 0:02:59]}  d6 {[%clk 0:03:00]} 3. d4 {[%clk 0:02:59]}  cxd4 {[%clk 0:03:00]} 4. Qxd4 {[%clk 0:02:59]}  Nf6 {[%clk 0:03:00]} 5. Bg5 {[%clk 0:02:59]}  Nc6 {[%clk 0:03:00]} 6. Bb5 {[%clk 0:02:58]}  Bd7 {[%clk 0:03:01]} 7. Qd3 {[%clk 0:02:57]}  e6 {[%clk 0:02:59]} 8. Nc3 {[%clk 0:02:57]}  Be7 {[%clk 0:03:00]} 9. O-O-O {[%clk 0:02:56]}  a6 {[%clk 0:02:53]} 10. Bxc6 {[%clk 0:02:56]}  Bxc6 {[%clk 0:02:54]} 11. Nd4 {[%clk 0:02:55]}  O-O {[%clk 0:02:49]} 12. f4 {[%clk 0:02:54]}  Qc7 {[%clk 0:02:42]} 13. h4 {[%clk 0:02:48]}  Rfd8 {[%clk 0:02:29]} 14. Qe2 {[%clk 0:02:00]}  Rac8 {[%clk 0:02:00]} 15. g4 {[%clk 0:01:40]}  Be8 {[%clk 0:01:11]} 16. f5 {[%clk 0:01:36]}  Bd7 {[%clk 0:01:05]} 17. Bf4 {[%clk 0:01:01]}  e5 {[%clk 0:00:45]} 18. g5 {[%clk 0:01:01]}  exd4 {[%clk 0:00:46]} 19. gxf6 {[%clk 0:01:01]}  dxc3 {[%clk 0:00:47]} 20. fxe7 {[%clk 0:00:53]}  cxb2+ {[%clk 0:00:47]} 21. Kb1 {[%clk 0:00:53]}  Re8 {[%clk 0:00:47]} 22. Bxd6 {[%clk 0:00:47]}  Qa5 {[%clk 0:00:45]} 23. Rhg1 {[%clk 0:00:26]}  Ba4 {[%clk 0:00:43]} 24. Rd2 {[%clk 0:00:26]}  Rc6 {[%clk 0:00:38]} 25. e5 {[%clk 0:00:20]}  Qc3 {[%clk 0:00:27]} 26. Rg2 {[%clk 0:00:10]}  f6 {[%clk 0:00:21]} 27. Rd3 {[%clk 0:00:10]}  Qc4 {[%clk 0:00:18]} 28. exf6 {[%clk 0:00:09]}  Kh8 {[%clk 0:00:12]} 29. f7 {[%clk 0:00:05]}  Qxf7 {[%clk 0:00:12]} 30. Qe5 {[%clk 0:00:05]}  Rec8 {[%clk 0:00:10]} 31. c3 {[%clk 0:00:05]}  Bb5 {[%clk 0:00:10]} 32. Rdg3 {[%clk 0:00:03]}  Bc4 {[%clk 0:00:09]} 33. Rxg7 {[%clk 0:00:02]}  Bxa2+ {[%clk 0:00:10]} 34. Kxb2 {[%clk 0:00:02]}  Qb3+ {[%clk 0:00:10]} 35. Kc1 {[%clk 0:00:03]}  Rxc3+ {[%clk 0:00:11]} 36. Kd2 {[%clk 0:00:03]}  Rc2+ {[%clk 0:00:11]} 37. Ke1 {[%clk 0:00:03]}  Qb1# {[%clk 0:00:12]} 0-1

[Event "December 19 Early 2023"]
[Site "https://www.chess.com"]
[Date "2023.12.19"]
[Round "9"]
[White "Gabrielian, Artur"]
[Black "Drygalov, Sergey"]
[Result "1-0"]
[Board "19"]
[TimeControl "180+1"]
[WhiteFideId "4131002"]
[BlackFideId "24171743"]
[WhiteElo "2441"]
[BlackElo "2504"]
[WhiteTeam "RUS"]
[BlackTeam "RUS"]
[WhiteClock "0:02:01"]
[BlackClock "0:00:36"]

1. e4 {[%clk 0:03:00]}  c5 {[%clk 0:03:00]} 2. Nf3 {[%clk 0:03:01]}  d6 {[%clk 0:03:01]} 3. d4 {[%clk 0:03:01]}  cxd4 {[%clk 0:03:02]} 4. Nxd4 {[%clk 0:03:02]}  Nf6 {[%clk 0:03:02]} 5. Nc3 {[%clk 0:03:02]}  a6 {[%clk 0:03:03]} 6. Bc4 {[%clk 0:03:03]}  e6 {[%clk 0:03:02]} 7. Be3 {[%clk 0:03:03]}  Be7 {[%clk 0:03:00]} 8. Bb3 {[%clk 0:03:03]}  b5 {[%clk 0:02:47]} 9. a3 {[%clk 0:03:00]}  O-O {[%clk 0:02:41]} 10. f3 {[%clk 0:02:59]}  Bb7 {[%clk 0:02:40]} 11. Qd2 {[%clk 0:02:57]}  Nbd7 {[%clk 0:02:29]} 12. O-O-O {[%clk 0:02:51]}  Nc5 {[%clk 0:02:29]} 13. Ba2 {[%clk 0:02:50]}  Qc7 {[%clk 0:02:27]} 14. Kb1 {[%clk 0:02:49]}  Rfd8 {[%clk 0:02:24]} 15. g4 {[%clk 0:02:48]}  Nfd7 {[%clk 0:02:18]} 16. g5 {[%clk 0:02:45]}  Ne5 {[%clk 0:02:18]} 17. h4 {[%clk 0:02:42]}  Rab8 {[%clk 0:02:12]} 18. h5 {[%clk 0:02:42]}  Nc4 {[%clk 0:02:08]} 19. Bxc4 {[%clk 0:02:42]}  bxc4 {[%clk 0:02:09]} 20. Ka1 {[%clk 0:02:42]}  d5 {[%clk 0:02:08]} 21. e5 {[%clk 0:02:42]}  Bc6 {[%clk 0:01:52]} 22. g6 {[%clk 0:02:38]}  Bf8 {[%clk 0:01:46]} 23. gxh7+ {[%clk 0:02:31]}  Kh8 {[%clk 0:01:46]} 24. h6 {[%clk 0:02:31]}  Bd7 {[%clk 0:01:31]} 25. hxg7+ {[%clk 0:02:29]}  Bxg7 {[%clk 0:01:31]} 26. Rdg1 {[%clk 0:02:27]}  Qxe5 {[%clk 0:01:29]} 27. Rg5 {[%clk 0:02:20]}  Qf6 {[%clk 0:01:24]} 28. Rhg1 {[%clk 0:02:17]}  Bh6 {[%clk 0:01:18]} 29. Rg8+ {[%clk 0:02:13]}  Kxh7 {[%clk 0:01:03]} 30. Rxd8 {[%clk 0:02:11]}  Rxd8 {[%clk 0:01:03]} 31. Rh1 {[%clk 0:02:08]}  Kg8 {[%clk 0:00:52]} 32. Bxh6 {[%clk 0:02:08]}  Qg6 {[%clk 0:00:43]} 33. Be3 {[%clk 0:02:03]}  Kg7 {[%clk 0:00:36]} 34. Rg1 {[%clk 0:02:01]} 1-0

[Event "December 19 Early 2023"]
[Site "https://www.chess.com"]
[Date "2023.12.19"]
[Round "9"]
[White "Truskavetsky, Alexandr"]
[Black "Movahed, Sina"]
[Result "0-1"]
[Board "20"]
[TimeControl "180+1"]
[WhiteFideId "14108577"]
[BlackFideId "42520835"]
[WhiteElo "2210"]
[BlackElo "2341"]
[WhiteTeam "RUS"]
[BlackTeam "IRI"]
[WhiteClock "0:00:22"]
[BlackClock "0:00:15"]

1. d4 {[%clk 0:03:00]}  Nf6 {[%clk 0:03:00]} 2. c4 {[%clk 0:03:00]}  g6 {[%clk 0:03:00]} 3. Nc3 {[%clk 0:03:01]}  Bg7 {[%clk 0:03:01]} 4. e4 {[%clk 0:03:01]}  O-O {[%clk 0:03:02]} 5. f4 {[%clk 0:03:01]}  d6 {[%clk 0:03:01]} 6. Nf3 {[%clk 0:03:01]}  Bg4 {[%clk 0:02:51]} 7. Be2 {[%clk 0:03:00]}  Nfd7 {[%clk 0:02:27]} 8. h3 {[%clk 0:03:00]}  Bxf3 {[%clk 0:02:27]} 9. Bxf3 {[%clk 0:03:01]}  Nc6 {[%clk 0:02:26]} 10. Be3 {[%clk 0:03:00]}  e5 {[%clk 0:02:26]} 11. fxe5 {[%clk 0:03:01]}  dxe5 {[%clk 0:02:26]} 12. d5 {[%clk 0:03:02]}  Nd4 {[%clk 0:02:26]} 13. O-O {[%clk 0:03:02]}  Qe7 {[%clk 0:02:19]} 14. Ne2 {[%clk 0:02:59]}  c5 {[%clk 0:02:16]} 15. dxc6 {[%clk 0:02:56]}  Nxc6 {[%clk 0:02:11]} 16. Nc3 {[%clk 0:02:51]}  Nf6 {[%clk 0:02:05]} 17. Nd5 {[%clk 0:02:45]}  Nxd5 {[%clk 0:02:05]} 18. cxd5 {[%clk 0:02:46]}  Nd4 {[%clk 0:02:05]} 19. Bxd4 {[%clk 0:02:47]}  exd4 {[%clk 0:02:06]} 20. Rc1 {[%clk 0:02:46]}  Rac8 {[%clk 0:02:00]} 21. Qd3 {[%clk 0:02:45]}  Qe5 {[%clk 0:01:51]} 22. Bg4 {[%clk 0:02:42]}  Rxc1 {[%clk 0:01:50]} 23. Rxc1 {[%clk 0:02:43]}  h5 {[%clk 0:01:47]} 24. Bf3 {[%clk 0:02:42]}  Qg3 {[%clk 0:01:44]} 25. Rd1 {[%clk 0:02:37]}  Be5 {[%clk 0:01:42]} 26. a4 {[%clk 0:02:15]}  Rc8 {[%clk 0:01:39]} 27. a5 {[%clk 0:02:11]}  Rc5 {[%clk 0:01:33]} 28. Ra1 {[%clk 0:01:58]}  h4 {[%clk 0:01:30]} 29. Kf1 {[%clk 0:01:31]}  Qg5 {[%clk 0:01:21]} 30. a6 {[%clk 0:01:28]}  b6 {[%clk 0:01:20]} 31. Qd1 {[%clk 0:01:16]}  Qe3 {[%clk 0:01:05]} 32. Ra3 {[%clk 0:01:16]}  Qf4 {[%clk 0:01:02]} 33. Ra1 {[%clk 0:01:14]}  g5 {[%clk 0:00:47]} 34. Rb1 {[%clk 0:01:02]}  Qe3 {[%clk 0:00:41]} 35. Qe1 {[%clk 0:00:57]}  Qd3+ {[%clk 0:00:41]} 36. Kg1 {[%clk 0:00:58]}  Bg3 {[%clk 0:00:36]} 37. Qd1 {[%clk 0:00:55]}  Qe3+ {[%clk 0:00:36]} 38. Kh1 {[%clk 0:00:56]}  d3 {[%clk 0:00:37]} 39. Qf1 {[%clk 0:00:45]}  d2 {[%clk 0:00:37]} 40. Rd1 {[%clk 0:00:45]}  Rc1 {[%clk 0:00:36]} 41. Be2 {[%clk 0:00:33]}  Qxe4 {[%clk 0:00:24]} 42. Kg1 {[%clk 0:00:18]}  Qd4+ {[%clk 0:00:16]} 43. Kh1 {[%clk 0:00:18]}  Qxb2 {[%clk 0:00:15]} 44. Bh5 {[%clk 0:00:16]}  Qg7 {[%clk 0:00:13]} 45. Rxc1 {[%clk 0:00:15]}  dxc1=Q {[%clk 0:00:14]} 46. Qxc1 {[%clk 0:00:16]}  Qe5 {[%clk 0:00:14]} 47. Qc8+ {[%clk 0:00:16]}  Kg7 {[%clk 0:00:14]} 48. Qc1 {[%clk 0:00:16]}  Qxd5 {[%clk 0:00:14]} 49. Qb2+ {[%clk 0:00:16]}  Be5 {[%clk 0:00:12]} 50. Qc1 {[%clk 0:00:16]}  Bf6 {[%clk 0:00:12]} 51. Qf1 {[%clk 0:00:16]}  b5 {[%clk 0:00:12]} 52. Be2 {[%clk 0:00:16]}  b4 {[%clk 0:00:12]} 53. Bc4 {[%clk 0:00:17]}  Qe5 {[%clk 0:00:11]} 54. Bb3 {[%clk 0:00:17]}  Qc3 {[%clk 0:00:12]} 55. Qb1 {[%clk 0:00:16]}  Be5 {[%clk 0:00:12]} 56. Ba2 {[%clk 0:00:15]}  Qg3 {[%clk 0:00:12]} 57. Kg1 {[%clk 0:00:16]}  Bd4+ {[%clk 0:00:12]} 58. Kh1 {[%clk 0:00:16]}  Be5 {[%clk 0:00:13]} 59. Kg1 {[%clk 0:00:16]}  Qh2+ {[%clk 0:00:14]} 60. Kf2 {[%clk 0:00:17]}  Bd4+ {[%clk 0:00:13]} 61. Kf3 {[%clk 0:00:17]}  Qg3+ {[%clk 0:00:13]} 62. Ke4 {[%clk 0:00:18]}  Qe5+ {[%clk 0:00:13]} 63. Kd3 {[%clk 0:00:18]}  Qe3+ {[%clk 0:00:13]} 64. Kc4 {[%clk 0:00:18]}  Qc3+ {[%clk 0:00:14]} 65. Kd5 {[%clk 0:00:19]}  Qc5+ {[%clk 0:00:14]} 66. Ke4 {[%clk 0:00:19]}  f5+ {[%clk 0:00:14]} 67. Kf3 {[%clk 0:00:20]}  Qc3+ {[%clk 0:00:14]} 68. Ke2 {[%clk 0:00:20]}  Qe3+ {[%clk 0:00:15]} 69. Kd1 {[%clk 0:00:21]}  Qg1+ {[%clk 0:00:14]} 70. Kc2 {[%clk 0:00:21]}  Qxg2+ {[%clk 0:00:15]} 71. Kd3 {[%clk 0:00:22]}  Qe4+ {[%clk 0:00:15]} 72. Kc4 {[%clk 0:00:22]}  Bc3+ {[%clk 0:00:12]} 73. Kb5 {[%clk 0:00:22]}  Qxb1 {[%clk 0:00:12]} 74. Bxb1 {[%clk 0:00:22]}  Kf6 {[%clk 0:00:13]} 75. Kc4 {[%clk 0:00:23]}  g4 {[%clk 0:00:13]} 76. hxg4 {[%clk 0:00:24]}  fxg4 {[%clk 0:00:14]} 77. Be4 {[%clk 0:00:24]}  h3 {[%clk 0:00:14]} 78. Kd3 {[%clk 0:00:25]}  g3 {[%clk 0:00:15]} 79. Ke2 {[%clk 0:00:26]}  g2 {[%clk 0:00:15]} 80. Kf2 {[%clk 0:00:22]}  Bd4+ {[%clk 0:00:15]} 0-1

[Event "December 19 Early 2023"]
[Site "https://www.chess.com"]
[Date "2023.12.19"]
[Round "9"]
[White "Shaik Sumer Arsh"]
[Black "Shevchenko, Kirill"]
[Result "0-1"]
[Board "22"]
[TimeControl "180+1"]
[WhiteFideId "45020000"]
[BlackFideId "14129574"]
[WhiteElo "2358"]
[BlackElo "2603"]
[WhiteTeam "IND"]
[BlackTeam "ROU"]
[WhiteClock "0:01:08"]
[BlackClock "0:00:49"]

1. d4 {[%clk 0:02:50]}  d5 {[%clk 0:02:57]} 2. c4 {[%clk 0:02:50]}  e5 {[%clk 0:02:57]} 3. dxe5 {[%clk 0:02:49]}  d4 {[%clk 0:02:57]} 4. Nf3 {[%clk 0:02:48]}  Nc6 {[%clk 0:02:57]} 5. a3 {[%clk 0:02:47]}  g6 {[%clk 0:02:55]} 6. b4 {[%clk 0:02:46]}  Bg7 {[%clk 0:02:47]} 7. Bb2 {[%clk 0:02:45]}  Nh6 {[%clk 0:02:43]} 8. Nxd4 {[%clk 0:02:43]}  Bxe5 {[%clk 0:02:42]} 9. e3 {[%clk 0:02:38]}  O-O {[%clk 0:02:38]} 10. Nxc6 {[%clk 0:02:23]}  Qxd1+ {[%clk 0:02:36]} 11. Kxd1 {[%clk 0:02:24]}  Bxb2 {[%clk 0:02:37]} 12. Ne7+ {[%clk 0:02:25]}  Kg7 {[%clk 0:02:35]} 13. Ra2 {[%clk 0:02:26]}  Bg4+ {[%clk 0:02:33]} 14. f3 {[%clk 0:02:25]}  Rfd8+ {[%clk 0:02:33]} 15. Kc2 {[%clk 0:02:19]}  Be5 {[%clk 0:02:29]} 16. fxg4 {[%clk 0:02:16]}  Nxg4 {[%clk 0:02:28]} 17. Nd5 {[%clk 0:02:13]}  Nf2 {[%clk 0:02:27]} 18. Kb3 {[%clk 0:02:00]}  Nxh1 {[%clk 0:02:24]} 19. g3 {[%clk 0:02:01]}  c6 {[%clk 0:02:21]} 20. Ndc3 {[%clk 0:02:01]}  a5 {[%clk 0:02:11]} 21. Bg2 {[%clk 0:01:53]}  axb4 {[%clk 0:02:10]} 22. Kxb4 {[%clk 0:01:53]}  Ra6 {[%clk 0:01:43]} 23. c5 {[%clk 0:01:39]}  Nxg3 {[%clk 0:01:25]} 24. hxg3 {[%clk 0:01:40]}  Bxg3 {[%clk 0:01:26]} 25. Nd2 {[%clk 0:01:37]}  Be1 {[%clk 0:01:21]} 26. Nc4 {[%clk 0:01:28]}  Rd3 {[%clk 0:01:18]} 27. Rc2 {[%clk 0:01:28]}  h5 {[%clk 0:01:09]} 28. Bf1 {[%clk 0:01:28]}  Rxc3 {[%clk 0:01:00]} 29. Rxc3 {[%clk 0:01:29]}  g5 {[%clk 0:01:01]} 30. Nd6 {[%clk 0:01:20]}  Bxc3+ {[%clk 0:00:59]} 31. Kxc3 {[%clk 0:01:20]}  Rxa3+ {[%clk 0:01:00]} 32. Kd4 {[%clk 0:01:21]}  g4 {[%clk 0:00:55]} 33. Nxb7 {[%clk 0:01:18]}  h4 {[%clk 0:00:55]} 34. Nd8 {[%clk 0:01:17]}  h3 {[%clk 0:00:51]} 35. Nxc6 {[%clk 0:01:17]}  Ra1 {[%clk 0:00:51]} 36. Bd3 {[%clk 0:01:14]}  h2 {[%clk 0:00:48]} 37. Be4 {[%clk 0:01:08]}  Ra4+ {[%clk 0:00:49]} 0-1

[Event "December 19 Early 2023"]
[Site "https://www.chess.com"]
[Date "2023.12.19"]
[Round "9"]
[White "Kukhmazov, Arsen"]
[Black "Samunenkov, Ihor"]
[Result "0-1"]
[Board "26"]
[TimeControl "180+1"]
[WhiteFideId "24108260"]
[BlackFideId "14187086"]
[WhiteElo "2397"]
[BlackElo "2473"]
[WhiteTeam "FID"]
[BlackTeam "UKR"]
[WhiteClock "0:00:02"]
[BlackClock "0:00:03"]

1. d4 {[%clk 0:03:00]}  d5 {[%clk 0:02:59]} 2. c4 {[%clk 0:03:01]}  e6 {[%clk 0:03:00]} 3. Nc3 {[%clk 0:03:01]}  a6 {[%clk 0:02:59]} 4. cxd5 {[%clk 0:02:58]}  exd5 {[%clk 0:03:00]} 5. Nf3 {[%clk 0:02:59]}  Nf6 {[%clk 0:03:00]} 6. Bg5 {[%clk 0:02:58]}  Be6 {[%clk 0:03:00]} 7. Bxf6 {[%clk 0:02:59]}  Qxf6 {[%clk 0:03:00]} 8. Qb3 {[%clk 0:02:59]}  Ra7 {[%clk 0:03:01]} 9. g3 {[%clk 0:02:59]}  Bd6 {[%clk 0:02:54]} 10. Bg2 {[%clk 0:02:46]}  O-O {[%clk 0:02:17]} 11. Ne5 {[%clk 0:02:33]}  Nc6 {[%clk 0:01:44]} 12. Nxc6 {[%clk 0:02:19]}  bxc6 {[%clk 0:01:44]} 13. e3 {[%clk 0:02:20]}  c5 {[%clk 0:01:17]} 14. dxc5 {[%clk 0:01:55]}  d4 {[%clk 0:01:10]} 15. Nd5 {[%clk 0:01:52]}  Bxd5 {[%clk 0:01:07]} 16. Qxd5 {[%clk 0:01:51]}  dxe3 {[%clk 0:00:55]} 17. O-O {[%clk 0:01:51]}  e2 {[%clk 0:00:49]} 18. Rfe1 {[%clk 0:01:47]}  Be5 {[%clk 0:00:49]} 19. Rxe2 {[%clk 0:01:45]}  Bxb2 {[%clk 0:00:49]} 20. Rb1 {[%clk 0:01:31]}  Bc3 {[%clk 0:00:37]} 21. c6 {[%clk 0:01:14]}  Raa8 {[%clk 0:00:36]} 22. h4 {[%clk 0:00:56]}  Rfd8 {[%clk 0:00:30]} 23. Qc4 {[%clk 0:00:49]}  Bd4 {[%clk 0:00:27]} 24. Kh2 {[%clk 0:00:32]}  Re8 {[%clk 0:00:19]} 25. Rd2 {[%clk 0:00:25]}  Be5 {[%clk 0:00:15]} 26. f4 {[%clk 0:00:16]}  Bd6 {[%clk 0:00:14]} 27. Re2 {[%clk 0:00:15]}  Rxe2 {[%clk 0:00:10]} 28. Qxe2 {[%clk 0:00:16]}  h6 {[%clk 0:00:10]} 29. Re1 {[%clk 0:00:08]}  a5 {[%clk 0:00:09]} 30. Bd5 {[%clk 0:00:06]}  Rb8 {[%clk 0:00:08]} 31. Rd1 {[%clk 0:00:05]}  a4 {[%clk 0:00:05]} 32. Rd2 {[%clk 0:00:05]}  a3 {[%clk 0:00:05]} 33. Bb3 {[%clk 0:00:04]}  g6 {[%clk 0:00:04]} 34. Qe4 {[%clk 0:00:04]}  Kg7 {[%clk 0:00:04]} 35. Re2 {[%clk 0:00:04]}  Rb4 {[%clk 0:00:03]} 36. Qd5 {[%clk 0:00:05]}  Rd4 {[%clk 0:00:03]} 37. Qf3 {[%clk 0:00:04]}  Rb4 {[%clk 0:00:01]} 38. Kg2 {[%clk 0:00:04]}  Rb8 {[%clk 0:00:01]} 39. Qd5 {[%clk 0:00:04]}  Rd8 {[%clk 0:00:01]} 40. Qe4 {[%clk 0:00:02]}  h5 {[%clk 0:00:02]} 41. Rd2 {[%clk 0:00:03]}  Rb8 {[%clk 0:00:02]} 42. Qd4 {[%clk 0:00:03]}  Qxd4 {[%clk 0:00:02]} 43. Rxd4 {[%clk 0:00:04]}  Bb4 {[%clk 0:00:01]} 44. Rd7 {[%clk 0:00:04]}  Bd6 {[%clk 0:00:01]} 45. Kf3 {[%clk 0:00:03]}  Rxb3+ {[%clk 0:00:01]} 46. axb3 {[%clk 0:00:03]}  a2 {[%clk 0:00:02]} 47. Rxd6 {[%clk 0:00:03]}  a1=Q {[%clk 0:00:02]} 48. Rd7 {[%clk 0:00:02]}  Qc3+ {[%clk 0:00:03]} 0-1

[Event "December 19 Early 2023"]
[Site "https://www.chess.com"]
[Date "2023.12.19"]
[Round "9"]
[White "Corrales Jimenez, Fidel"]
[Black "Yaran, Siar"]
[Result "0-1"]
[Board "29"]
[TimeControl "180+1"]
[WhiteFideId "3506690"]
[BlackFideId "6323006"]
[WhiteElo "2507"]
[BlackElo "2191"]
[WhiteTeam "USA"]
[BlackTeam "TUR"]
[WhiteClock "0:00:09"]
[BlackClock "0:00:12"]

1. e4 {[%clk 0:03:00]}  e5 {[%clk 0:02:59]} 2. Nf3 {[%clk 0:03:00]}  Nc6 {[%clk 0:02:59]} 3. d4 {[%clk 0:02:59]}  d6 {[%clk 0:02:58]} 4. dxe5 {[%clk 0:02:59]}  Nxe5 {[%clk 0:02:58]} 5. Nxe5 {[%clk 0:02:57]}  dxe5 {[%clk 0:02:58]} 6. Qxd8+ {[%clk 0:02:58]}  Kxd8 {[%clk 0:02:59]} 7. Bc4 {[%clk 0:02:58]}  Ke7 {[%clk 0:02:59]} 8. f4 {[%clk 0:02:55]}  exf4 {[%clk 0:02:47]} 9. Bxf4 {[%clk 0:02:56]}  Be6 {[%clk 0:02:47]} 10. Bxe6 {[%clk 0:02:54]}  Kxe6 {[%clk 0:02:47]} 11. Nd2 {[%clk 0:02:48]}  Bd6 {[%clk 0:02:15]} 12. Bxd6 {[%clk 0:02:47]}  Kxd6 {[%clk 0:02:15]} 13. O-O-O {[%clk 0:02:47]}  Ke7 {[%clk 0:02:15]} 14. e5 {[%clk 0:02:40]}  Nh6 {[%clk 0:02:06]} 15. Ne4 {[%clk 0:02:40]}  Rad8 {[%clk 0:02:00]} 16. Nc5 {[%clk 0:02:40]}  b6 {[%clk 0:01:55]} 17. Na6 {[%clk 0:02:40]}  c5 {[%clk 0:01:25]} 18. Nc7 {[%clk 0:02:38]}  Ng4 {[%clk 0:01:18]} 19. Rde1 {[%clk 0:01:16]}  Rd7 {[%clk 0:01:03]} 20. Nb5 {[%clk 0:01:11]}  a6 {[%clk 0:00:48]} 21. Nd6 {[%clk 0:01:05]}  Nxe5 {[%clk 0:00:33]} 22. Nc4 {[%clk 0:01:04]}  f6 {[%clk 0:00:32]} 23. Nxe5 {[%clk 0:01:03]}  fxe5 {[%clk 0:00:33]} 24. Rxe5+ {[%clk 0:01:04]}  Kf6 {[%clk 0:00:18]} 25. Rhe1 {[%clk 0:01:03]}  Rd6 {[%clk 0:00:19]} 26. g4 {[%clk 0:01:00]}  h6 {[%clk 0:00:18]} 27. h4 {[%clk 0:01:00]}  Rhd8 {[%clk 0:00:19]} 28. Rf5+ {[%clk 0:00:57]}  Kg6 {[%clk 0:00:18]} 29. h5+ {[%clk 0:00:58]}  Kh7 {[%clk 0:00:19]} 30. b3 {[%clk 0:00:56]}  Rd4 {[%clk 0:00:19]} 31. Re6 {[%clk 0:00:55]}  R8d6 {[%clk 0:00:16]} 32. Re8 {[%clk 0:00:51]}  Rd8 {[%clk 0:00:13]} 33. Re6 {[%clk 0:00:37]}  R8d6 {[%clk 0:00:13]} 34. Rfe5 {[%clk 0:00:38]}  Rxe6 {[%clk 0:00:12]} 35. Rxe6 {[%clk 0:00:39]}  Rxg4 {[%clk 0:00:13]} 36. Rxb6 {[%clk 0:00:39]}  Rg5 {[%clk 0:00:13]} 37. Rxa6 {[%clk 0:00:36]}  Rxh5 {[%clk 0:00:14]} 38. a4 {[%clk 0:00:37]}  Rf5 {[%clk 0:00:13]} 39. a5 {[%clk 0:00:29]}  h5 {[%clk 0:00:13]} 40. Rd6 {[%clk 0:00:20]}  h4 {[%clk 0:00:12]} 41. Kb2 {[%clk 0:00:19]}  Rf7 {[%clk 0:00:08]} 42. Rd5 {[%clk 0:00:18]}  Kh6 {[%clk 0:00:08]} 43. Rxc5 {[%clk 0:00:18]}  g5 {[%clk 0:00:08]} 44. Rc6+ {[%clk 0:00:18]}  Kh5 {[%clk 0:00:08]} 45. Rc8 {[%clk 0:00:18]}  Rh7 {[%clk 0:00:09]} 46. b4 {[%clk 0:00:18]}  h3 {[%clk 0:00:09]} 47. Rd8 {[%clk 0:00:10]}  h2 {[%clk 0:00:09]} 48. Rd1 {[%clk 0:00:11]}  g4 {[%clk 0:00:09]} 49. Rh1 {[%clk 0:00:12]}  g3 {[%clk 0:00:10]} 50. b5 {[%clk 0:00:13]}  Kg4 {[%clk 0:00:10]} 51. b6 {[%clk 0:00:13]}  g2 {[%clk 0:00:11]} 52. Rxh2 {[%clk 0:00:12]}  Rxh2 {[%clk 0:00:12]} 53. b7 {[%clk 0:00:13]}  Rh8 {[%clk 0:00:12]} 54. a6 {[%clk 0:00:09]}  g1=Q {[%clk 0:00:12]} 0-1

[Event "December 19 Early 2023"]
[Site "https://www.chess.com"]
[Date "2023.12.19"]
[Round "9"]
[White "Harutjunyan, Gevorg"]
[Black "Vlassov, Nikolai"]
[Result "1-0"]
[Board "32"]
[TimeControl "180+1"]
[WhiteFideId "13300873"]
[BlackFideId "4103360"]
[WhiteElo "2436"]
[BlackElo "2351"]
[WhiteTeam "ARM"]
[BlackTeam "FID"]
[WhiteClock "0:00:13"]
[BlackClock "0:00:17"]

1. e4 {[%clk 0:03:00]}  Nc6 {[%clk 0:02:56]} 2. Nf3 {[%clk 0:03:00]}  d5 {[%clk 0:02:54]} 3. exd5 {[%clk 0:03:00]}  Qxd5 {[%clk 0:02:54]} 4. Nc3 {[%clk 0:03:01]}  Qa5 {[%clk 0:02:54]} 5. Bb5 {[%clk 0:02:58]}  Bd7 {[%clk 0:02:54]} 6. d4 {[%clk 0:02:50]}  a6 {[%clk 0:02:55]} 7. Bc4 {[%clk 0:02:45]}  O-O-O {[%clk 0:02:51]} 8. d5 {[%clk 0:02:36]}  Bg4 {[%clk 0:02:22]} 9. h3 {[%clk 0:02:28]}  Bxf3 {[%clk 0:02:07]} 10. Qxf3 {[%clk 0:02:29]}  Nb4 {[%clk 0:02:08]} 11. O-O {[%clk 0:02:21]}  Nf6 {[%clk 0:02:07]} 12. Bd2 {[%clk 0:02:08]}  Nbxd5 {[%clk 0:01:59]} 13. Nxd5 {[%clk 0:02:05]}  Qxd2 {[%clk 0:01:59]} 14. Rad1 {[%clk 0:01:47]}  Qg5 {[%clk 0:01:35]} 15. Nb6+ {[%clk 0:01:09]}  cxb6 {[%clk 0:01:33]} 16. Rxd8+ {[%clk 0:01:09]}  Kxd8 {[%clk 0:01:33]} 17. Qxb7 {[%clk 0:01:10]}  Qd2 {[%clk 0:01:16]} 18. Qxb6+ {[%clk 0:01:10]}  Kd7 {[%clk 0:01:14]} 19. Qb7+ {[%clk 0:01:02]}  Kd8 {[%clk 0:01:09]} 20. Bxa6 {[%clk 0:01:01]}  e6 {[%clk 0:01:03]} 21. Qb6+ {[%clk 0:00:55]}  Ke7 {[%clk 0:01:00]} 22. c4 {[%clk 0:00:49]}  Nd7 {[%clk 0:00:56]} 23. Qb7 {[%clk 0:00:43]}  Kf6 {[%clk 0:00:55]} 24. Qf3+ {[%clk 0:00:32]}  Ke7 {[%clk 0:00:28]} 25. Rd1 {[%clk 0:00:31]}  Qa5 {[%clk 0:00:28]} 26. Qc6 {[%clk 0:00:22]}  Ne5 {[%clk 0:00:22]} 27. Qd6+ {[%clk 0:00:13]}  Kf6 {[%clk 0:00:22]} 28. Qd8+ {[%clk 0:00:13]}  Kg6 {[%clk 0:00:17]} 29. Qxa5 {[%clk 0:00:13]} 1-0

[Event "December 19 Early 2023"]
[Site "https://www.chess.com"]
[Date "2023.12.19"]
[Round "9"]
[White "Buksa, Nataliya"]
[Black "Alexandre, Anne Shopie Elizabeth"]
[Result "0-1"]
[Board "35"]
[TimeControl "180+1"]
[WhiteFideId "14123622"]
[BlackFideId "11902418"]
[WhiteElo "2316"]
[BlackElo "2840"]
[WhiteTeam "UKR"]
[BlackTeam "HAI"]
[WhiteClock "0:00:00"]
[BlackClock "0:00:04"]

1. e4 {[%clk 0:03:00]}  c5 {[%clk 0:02:59]} 2. c3 {[%clk 0:03:00]}  d5 {[%clk 0:02:55]} 3. exd5 {[%clk 0:03:00]}  Qxd5 {[%clk 0:02:56]} 4. d4 {[%clk 0:03:01]}  g6 {[%clk 0:02:56]} 5. Nf3 {[%clk 0:03:01]}  Bg7 {[%clk 0:02:57]} 6. Nbd2 {[%clk 0:03:01]}  cxd4 {[%clk 0:02:52]} 7. Bc4 {[%clk 0:03:02]}  Qd8 {[%clk 0:02:42]} 8. Nb3 {[%clk 0:03:01]}  Nc6 {[%clk 0:02:40]} 9. Nbxd4 {[%clk 0:02:59]}  Nxd4 {[%clk 0:02:40]} 10. Nxd4 {[%clk 0:02:59]}  Nf6 {[%clk 0:02:41]} 11. O-O {[%clk 0:02:58]}  O-O {[%clk 0:02:41]} 12. h3 {[%clk 0:02:57]}  Ne4 {[%clk 0:02:31]} 13. Be3 {[%clk 0:02:53]}  Nd6 {[%clk 0:02:30]} 14. Bb3 {[%clk 0:02:50]}  e5 {[%clk 0:02:29]} 15. Nf3 {[%clk 0:02:49]}  b6 {[%clk 0:02:19]} 16. Nxe5 {[%clk 0:02:28]}  Bxe5 {[%clk 0:01:42]} 17. Qd5 {[%clk 0:02:28]}  Qf6 {[%clk 0:01:25]} 18. Qxa8 {[%clk 0:02:24]}  Bxh3 {[%clk 0:01:25]} 19. Qd5 {[%clk 0:02:14]}  Be6 {[%clk 0:01:18]} 20. Qf3 {[%clk 0:02:11]}  Bf5 {[%clk 0:01:15]} 21. Rad1 {[%clk 0:02:07]}  Qh4 {[%clk 0:01:08]} 22. g3 {[%clk 0:02:07]}  Qh3 {[%clk 0:01:08]} 23. Qh1 {[%clk 0:01:45]}  Qg4 {[%clk 0:01:06]} 24. Bd5 {[%clk 0:01:41]}  Bxg3 {[%clk 0:01:01]} 25. Bf3 {[%clk 0:01:38]}  Bxf2+ {[%clk 0:00:53]} 26. Kxf2 {[%clk 0:01:38]}  Ne4+ {[%clk 0:00:54]} 27. Bxe4 {[%clk 0:01:20]}  Bxe4 {[%clk 0:00:54]} 28. Qg1 {[%clk 0:01:20]}  Qe6 {[%clk 0:00:46]} 29. Qg5 {[%clk 0:01:18]}  f6 {[%clk 0:00:43]} 30. Qf4 {[%clk 0:01:14]}  g5 {[%clk 0:00:43]} 31. Qg3 {[%clk 0:01:09]}  Re8 {[%clk 0:00:42]} 32. Kg1 {[%clk 0:01:06]}  Bb7 {[%clk 0:00:26]} 33. Rde1 {[%clk 0:00:44]}  Qc6 {[%clk 0:00:17]} 34. Qh3 {[%clk 0:00:42]}  Re4 {[%clk 0:00:14]} 35. Kf2 {[%clk 0:00:23]}  Rh4 {[%clk 0:00:13]} 36. Qg3 {[%clk 0:00:20]}  Qd7 {[%clk 0:00:11]} 37. Bxg5 {[%clk 0:00:16]}  Rg4 {[%clk 0:00:11]} 38. Re7 {[%clk 0:00:05]}  Qf5+ {[%clk 0:00:09]} 39. Bf4 {[%clk 0:00:05]}  Kf8 {[%clk 0:00:05]} 40. Qe3 {[%clk 0:00:01]}  Rxf4+ {[%clk 0:00:04]} 41. Ke2 {[%clk 0:00:00]}  Ba6+ {[%clk 0:00:04]} 0-1